fUSD/lending_fUSD_20260308
["ID","MTS","AMOUNT","RATE_DAILY","PERIOD"]
[407987038,1772974238673,-1413.09984185,0.00012822,2]
[407987039,1772974238684,-1413.09984185,0.00012822,2]
[407987040,1772974238693,-1413.09984185,0.00012822,2]
[407987041,1772974238702,-1413.09984185,0.00012822,2]
[407987042,1772974238711,-1413.09984185,0.00012822,2]
[407987043,1772974238720,-1413.09984185,0.00012822,2]
[407987044,1772974238729,-1413.09984185,0.00012822,2]
[407987045,1772974238739,-1413.09984185,0.00012822,2]
[407987046,1772974238749,-1413.09984185,0.00012822,2]
[407987047,1772974238758,-2402381.69673628,0.00012824,2]
[407987048,1772974238767,-500.0,0.00012873,2]
[407987049,1772974238778,-500.0,0.00012873,2]
[407987050,1772974238787,-500.0,0.00012873,2]
[407987051,1772974238800,-500.0,0.00012873,2]
[407987052,1772974238809,-500.0,0.00012873,2]
[407987053,1772974238820,-500.0,0.00012873,2]
[407987054,1772974238830,-502.26276919,0.00012873,2]
[407987055,1772974238843,-500.0,0.00012873,2]
[407987056,1772974238852,-500.0,0.00012873,2]
[407987057,1772974238863,-500.0,0.00012873,2]
[407987058,1772974238875,-500.0,0.00012873,2]
[407987059,1772974238884,-500.0,0.00012873,2]
[407987060,1772974238893,-500.0,0.00012873,2]
[407987061,1772974238902,-500.0,0.00012873,2]
[407987062,1772974238911,-196.0,0.0001301,2]
[407987063,1772974238920,-319.0,0.00013014,2]
[407987064,1772974238930,-669.0,0.00013036,2]
[407987065,1772974238941,-1195.0,0.00013062,2]
[407987066,1772974238952,-500.0,0.0001309,2]
[407987067,1772974238962,-613.48,0.00013097,2]
[407987068,1772974238973,-150.0,0.00013165,2]
[407987069,1772974238982,-5000.0,0.00013248,2]
[407987070,1772974238992,-250.0,0.00013248,2]
[407987071,1772974239002,-300.3865423,0.00013248,2]
[407987072,1772974239011,-193.62959799,0.00013248,2]
[407987073,1772974239020,-3375.87322515,0.00013248,2]
[407987074,1772974239029,-250.0,0.00013248,2]
[407987075,1772974239038,-5000.0,0.00013248,2]
[407987076,1772974239047,-1680.0,0.00013346,2]
[407987077,1772974239057,-500.0,0.00013364,2]
[407987078,1772974239066,-200.0,0.00013364,2]
[407987079,1772974239076,-613.48,0.00013371,2]
[407987080,1772974239085,-500.0,0.00013421,2]
[407987081,1772974239095,-1000.0,0.00013421,2]
[407987082,1772974239104,-1000.43471003,0.00013421,2]
[407987083,1772974239113,-787.80347915,0.00013421,2]
[407987084,1772974239123,-1004.26526581,0.00013421,2]
[407987085,1772974239132,-1000.0,0.00013421,2]
[407987086,1772974239141,-500.0,0.00013421,2]
[407987087,1772974239150,-427.79118707,0.00013421,2]
[407987088,1772974239159,-502.06786579,0.00013421,2]
[407987089,1772974239168,-1000.0,0.00013421,2]
[407987090,1772974239177,-1000.0,0.00013421,2]
[407987091,1772974239187,-1000.0,0.00013421,2]
[407987092,1772974239197,-18237.36401677,0.0001352,2]
[407987093,1772974239207,-973.0,0.00013607,2]
[407987094,1772974239216,-1982.0,0.00013634,2]
[407987095,1772974239225,-500.0,0.00013638,2]
[407987096,1772974239235,-613.48,0.00013645,2]
[407987097,1772974239244,-1357.02,0.0001365,2]
[407987098,1772974239253,-1631.36125053,0.00013661,2]
[407987099,1772974239262,-495.29648094,0.00013673,2]
[407987100,1772974239271,-500.0,0.00013698,2]
[407987101,1772974239281,-500.0,0.00013698,2]
[407987102,1772974239291,-500.0,0.00013698,2]
[407987103,1772974239300,-507.37727465,0.00013698,2]
[407987104,1772974239310,-500.0,0.00013698,2]
[407987105,1772974239319,-500.0,0.00013698,2]
[407987106,1772974239329,-500.0,0.00013698,2]
[407987107,1772974239338,-500.0,0.00013698,2]
[407987108,1772974239348,-500.0,0.00013698,2]
[407987109,1772974239357,-500.0,0.00013698,2]
[407987110,1772974239366,-500.0,0.00013698,2]
[407987111,1772974239376,-502.45046562,0.00013698,2]
[407987112,1772974239385,-500.0,0.00013698,2]
[407987113,1772974239394,-500.0,0.00013698,2]
[407987114,1772974239404,-500.0,0.00013698,2]
[407987115,1772974239413,-500.0,0.00013698,2]
[407987116,1772974239423,-500.0,0.00013698,2]
[407987117,1772974239433,-500.0,0.00013698,2]
[407987118,1772974239442,-500.0,0.00013698,2]
[407987119,1772974239451,-500.0,0.00013698,2]
[407987120,1772974239461,-500.0,0.00013698,2]
[407987121,1772974239470,-500.0,0.00013698,2]
[407987122,1772974239480,-500.0,0.00013698,2]
[407987123,1772974239489,-500.0,0.00013698,2]
[407987124,1772974239499,-500.0,0.00013698,2]
[407987125,1772974239508,-500.0,0.00013698,2]
[407987126,1772974239519,-500.0,0.00013698,2]
[407987127,1772974239528,-500.0,0.00013698,2]
[407987128,1772974239537,-500.0,0.00013698,2]
[407987129,1772974239546,-500.0,0.00013698,2]
[407987130,1772974239556,-500.0,0.00013698,2]
[407987131,1772974239565,-500.0,0.00013698,2]
[407987132,1772974239574,-500.0,0.00013698,2]
[407987133,1772974239583,-500.0,0.00013698,2]
[407987134,1772974239592,-500.0,0.00013698,2]
[407987135,1772974239603,-500.0,0.00013698,2]
[407987136,1772974239612,-500.0,0.00013698,2]
[407987137,1772974239621,-500.0,0.00013698,2]
[407987138,1772974239630,-500.0,0.00013698,2]
[407987139,1772974239639,-500.0,0.00013698,2]
[407987140,1772974239648,-500.0,0.00013698,2]
[407987141,1772974239657,-500.0,0.00013698,2]
[407987142,1772974239667,-500.0,0.00013698,2]
[407987143,1772974239676,-500.0,0.00013698,2]
[407987144,1772974239685,-500.0,0.00013698,2]
[407987145,1772974239694,-500.0,0.00013698,2]
[407987146,1772974239704,-500.0,0.00013698,2]
[407987147,1772974239715,-500.0,0.00013698,2]
[407987148,1772974239724,-500.0,0.00013698,2]
[407987149,1772974239733,-500.0,0.00013698,2]
[407987150,1772974239743,-500.0,0.00013698,2]
[407987151,1772974239754,-500.0,0.00013698,2]
[407987152,1772974239763,-500.0,0.00013698,2]
[407987153,1772974239773,-500.0,0.00013698,2]
[407987154,1772974239783,-500.0,0.00013698,2]
[407987155,1772974239795,-605.55782896,0.00013698,2]
[407987156,1772974239807,-500.0,0.00013698,2]
[407987157,1772974239817,-500.0,0.00013698,2]
[407987158,1772974239827,-500.0,0.00013698,2]
[407987159,1772974239838,-500.0,0.00013698,2]
[407987160,1772974239847,-500.0,0.00013698,2]
[407987161,1772974239856,-500.0,0.00013698,2]
[407987162,1772974239865,-500.0,0.00013698,2]
[407987163,1772974239875,-500.0,0.00013698,2]
[407987164,1772974239885,-500.0,0.00013698,2]
[407987165,1772974239895,-500.0,0.00013698,2]
[407987166,1772974239904,-500.0,0.00013698,2]
[407987167,1772974239913,-500.0,0.00013698,2]
[407987168,1772974239924,-500.0,0.00013698,2]
[407987169,1772974239934,-500.0,0.00013698,2]
[407987170,1772974239944,-500.0,0.00013698,2]
[407987171,1772974239955,-500.0,0.00013698,2]
[407987172,1772974239966,-500.0,0.00013698,2]
[407987173,1772974239978,-500.0,0.00013698,2]
[407987174,1772974239987,-500.0,0.00013698,2]
[407987175,1772974239998,-500.0,0.00013698,2]
[407987176,1772974240006,-505.32416437,0.00013698,2]
[407987177,1772974240016,-500.0,0.00013698,2]
[407987178,1772974240025,-500.0,0.00013698,2]
[407987179,1772974240034,-500.0,0.00013698,2]
[407987180,1772974240043,-500.0,0.00013698,2]
[407987181,1772974240052,-500.0,0.00013698,2]
[407987182,1772974240062,-500.0,0.00013698,2]
[407987183,1772974240071,-500.0,0.00013698,2]
[407987184,1772974240080,-500.0,0.00013698,2]
[407987189,1772974240262,-500.0,0.00013698,2]
[407987190,1772974240273,-500.0,0.00013698,2]
[407987191,1772974240282,-500.0,0.00013698,2]
[407987192,1772974240292,-500.0,0.00013698,2]
[407987193,1772974240302,-500.0,0.00013698,2]
[407987194,1772974240311,-500.0,0.00013698,2]
[407987195,1772974240320,-500.0,0.00013698,2]
[407987196,1772974240329,-500.0,0.00013698,2]
[407987197,1772974240339,-500.0,0.00013698,2]
[407987198,1772974240348,-500.0,0.00013698,2]
[407987199,1772974240357,-500.0,0.00013698,2]
[407987200,1772974240366,-500.0,0.00013698,2]
[407987201,1772974240375,-500.0,0.00013698,2]
[407987202,1772974240384,-500.0,0.00013698,2]
[407987203,1772974240393,-500.0,0.00013698,2]
[407987204,1772974240404,-500.0,0.00013698,2]
[407987205,1772974240413,-500.0,0.00013698,2]
[407987206,1772974240422,-500.0,0.00013698,2]
[407987207,1772974240431,-500.0,0.00013698,2]
[407987208,1772974240441,-500.0,0.00013698,2]
[407987209,1772974240450,-500.0,0.00013698,2]
[407987210,1772974240459,-500.0,0.00013698,2]
[407987211,1772974240468,-500.0,0.00013698,2]
[407987212,1772974240477,-500.0,0.00013698,2]
[407987213,1772974240485,-500.0,0.00013698,2]
[407987214,1772974240495,-500.0,0.00013698,2]
[407987215,1772974240504,-500.0,0.00013698,2]
[407987216,1772974240513,-500.0,0.00013698,2]
[407987217,1772974240522,-500.0,0.00013698,2]
[407987218,1772974240532,-500.0,0.00013698,2]
[407987219,1772974240543,-500.0,0.00013698,2]
[407987220,1772974240552,-500.0,0.00013698,2]
[407987221,1772974240562,-500.0,0.00013698,2]
[407987222,1772974240572,-500.0,0.00013698,2]
[407987223,1772974240581,-500.0,0.00013698,2]
[407987224,1772974240590,-500.0,0.00013698,2]
[407987225,1772974240599,-500.0,0.00013698,2]
[407987226,1772974240608,-500.0,0.00013698,2]
[407987227,1772974240617,-500.0,0.00013698,2]
[407987228,1772974240626,-500.0,0.00013698,2]
[407987229,1772974240635,-500.0,0.00013698,2]
[407987230,1772974240644,-500.0,0.00013698,2]
[407987231,1772974240654,-500.0,0.00013698,2]
[407987232,1772974240663,-500.0,0.00013698,2]
[407987233,1772974240672,-500.0,0.00013698,2]
[407987234,1772974240681,-500.0,0.00013698,2]
[407987235,1772974240690,-500.0,0.00013698,2]
[407987236,1772974240699,-500.0,0.00013698,2]
[407987237,1772974240709,-500.0,0.00013698,2]
[407987238,1772974240719,-500.0,0.00013698,2]
[407987239,1772974240728,-500.0,0.00013698,2]
[407987240,1772974240737,-500.0,0.00013698,2]
[407987241,1772974240746,-500.0,0.00013698,2]
[407987242,1772974240755,-500.0,0.00013698,2]
[407987243,1772974240764,-500.0,0.00013698,2]
[407987244,1772974240773,-500.0,0.00013698,2]
[407987245,1772974240782,-500.0,0.00013698,2]
[407987246,1772974240792,-417.78031147,0.00013698,2]
[407987247,1772974240804,-261.45915393,0.00013698,2]
[407987248,1772974240813,-500.0,0.00013698,2]
[407987249,1772974240822,-500.0,0.00013698,2]
[407987250,1772974240831,-500.0,0.00013698,2]
[407987251,1772974240841,-500.0,0.00013698,2]
[407987252,1772974240851,-500.0,0.00013698,2]
[407987253,1772974240859,-500.0,0.00013698,2]
[407987254,1772974240871,-500.0,0.00013698,2]
[407987255,1772974240880,-500.0,0.00013698,2]
[407987256,1772974240889,-500.0,0.00013698,2]
[407987257,1772974240898,-500.0,0.00013698,2]
[407987258,1772974240907,-500.0,0.00013698,2]
[407987259,1772974240916,-500.0,0.00013698,2]
[407987260,1772974240925,-500.0,0.00013698,2]
[407987261,1772974240934,-500.0,0.00013698,2]
[407987262,1772974240943,-500.0,0.00013698,2]
[407987263,1772974240952,-500.0,0.00013698,2]
[407987264,1772974240961,-500.0,0.00013698,2]
[407987265,1772974240970,-500.0,0.00013698,2]
[407987266,1772974240979,-500.0,0.00013698,2]
[407987267,1772974240988,-500.0,0.00013698,2]
[407987268,1772974240997,-500.0,0.00013698,2]
[407987269,1772974241006,-500.0,0.00013698,2]
[407987270,1772974241015,-500.0,0.00013698,2]
[407987271,1772974241023,-500.0,0.00013698,2]
[407987272,1772974241032,-500.0,0.00013698,2]
[407987273,1772974241041,-500.0,0.00013698,2]
[407987274,1772974241049,-500.0,0.00013698,2]
[407987275,1772974241058,-500.0,0.00013698,2]
[407987276,1772974241067,-500.0,0.00013698,2]
[407987277,1772974241075,-500.0,0.00013698,2]
[407987278,1772974241084,-500.0,0.00013698,2]
[407987279,1772974241093,-500.0,0.00013698,2]
[407987280,1772974241102,-500.0,0.00013698,2]
[407987281,1772974241110,-500.0,0.00013698,2]
[407987282,1772974241119,-500.0,0.00013698,2]
[407987283,1772974241128,-251.67,0.00013698,2]
[407987284,1772974241137,-500.0,0.00013698,2]
[407987285,1772974241146,-500.0,0.00013698,2]
[407987286,1772974241154,-500.0,0.00013698,2]
[407987287,1772974241163,-194810.94,0.00013699,2]
[407987288,1772974241171,-499.99,0.00013699,2]
[407987289,1772974241181,-2160.9,0.00013699,2]
[407987290,1772974241190,-299.99,0.00013699,2]
[407987291,1772974241199,-2990.34,0.00013699,2]
[407987292,1772974241208,-150.99,0.00013699,2]
[407987293,1772974241217,-150.99,0.00013699,2]
[407987294,1772974241225,-9999.99,0.00013699,2]
[407987295,1772974241234,-500.0,0.00013699,2]
[407987296,1772974241243,-500.0,0.00013699,2]
[407987297,1772974241251,-500.0,0.00013699,2]
[407987298,1772974241260,-500.0,0.00013699,2]
[407987299,1772974241269,-500.0,0.00013699,2]
[407987300,1772974241278,-500.0,0.00013699,2]
[407987301,1772974241286,-500.0,0.00013699,2]
[407987302,1772974241296,-500.0,0.00013699,2]
[407987303,1772974241305,-500.0,0.00013699,2]
[407987304,1772974241314,-163.72702598,0.00013699,2]
[407987305,1772974241323,-500.0,0.00013699,2]
[407987306,1772974241332,-500.0,0.00013699,2]
[407987307,1772974241341,-500.0,0.00013699,2]
[407987308,1772974241350,-500.0,0.00013699,2]
[407987309,1772974241360,-500.0,0.00013699,2]
[407987310,1772974241369,-239.71698079,0.00013699,2]
[407987311,1772974241378,-500.0,0.00013699,2]
[407987312,1772974241387,-173.79818789,0.00013699,2]
[407987313,1772974241396,-1083.22,0.000137,2]
[407987314,1772974241405,-1083.22,0.000137,2]
[407987315,1772974241414,-1083.22,0.000137,2]
[407987316,1772974241423,-1083.22,0.000137,2]
[407987317,1772974241432,-1083.22,0.000137,2]
[407987318,1772974241442,-255.0,0.00013758,2]
[407987319,1772974241451,-227.0,0.00013841,2]
[407987320,1772974241460,-420.0,0.00013885,2]
[407987321,1772974241469,-500.0,0.00013912,2]
[407987322,1772974241478,-200.0,0.00013912,2]
[407987323,1772974241487,-613.48,0.00013919,2]
[407987324,1772974241497,-351.97472305,0.00013961,2]
[407987325,1772974241506,-501.73172292,0.00013968,2]
[407987326,1772974241515,-1500.0,0.00013968,2]
[407987327,1772974241525,-1500.0,0.00013968,2]
[407987328,1772974241535,-1500.0,0.00013968,2]
[407987329,1772974241544,-1500.0,0.00013968,2]
[407987330,1772974241553,-181.49,0.00014,2]
[407987331,1772974241564,-500.0,0.00014186,2]
[407987332,1772974241573,-613.53,0.00014193,2]
[407987333,1772974241583,-1086.0,0.00014222,2]
[407987334,1772974241592,-1000.0,0.00014247,2]
[407987335,1772974241601,-1000.0,0.00014247,2]
[407987336,1772974241610,-1000.0,0.00014247,2]
[407987337,1772974241620,-500.0,0.00014247,2]
[407987338,1772974241629,-1000.0,0.00014247,2]
[407987339,1772974241639,-1000.0,0.00014247,2]
[407987340,1772974241648,-949.5306254,0.00014247,2]
[407987341,1772974241657,-1000.0,0.00014247,2]
[407987342,1772974241666,-530.88059829,0.00014247,2]
[407987343,1772974241676,-1000.0,0.00014247,2]
[407987344,1772974241685,-1000.0,0.00014247,2]
[407987345,1772974241695,-1000.0,0.00014247,2]
[407987346,1772974241704,-500.0,0.00014302,2]
[407987347,1772974241713,-500.0,0.00014302,2]
[407987348,1772974241722,-500.0,0.00014302,2]
[407987349,1772974241732,-500.0,0.00014302,2]
[407987350,1772974241741,-18237.36401677,0.00014318,2]
[407987351,1772974241750,-181.49,0.00014339,2]
[407987352,1772974241759,-500.0,0.00014356,2]
[407987353,1772974241768,-500.0,0.00014356,2]
[407987354,1772974241777,-607.50528381,0.0001446,2]
[407987355,1772974241787,-2000.0,0.00014516,2]
[407987356,1772974241800,-1500.0,0.00014516,2]
[407987357,1772974241809,-2000.0,0.00014516,2]
[407987358,1772974241819,-151.0,0.00014634,2]
[407987359,1772974241828,-151.0,0.00014634,2]
[407987360,1772974241839,-151.0,0.00014634,2]
[407987361,1772974241848,-181.49,0.00014678,2]
[407987362,1772974241857,-2351.0,0.0001468,2]
[407987363,1772974241867,-1000.86016718,0.00014795,2]
[407987364,1772974241876,-1500.0,0.00014795,2]
[407987365,1772974241885,-1500.0,0.00014795,2]
[407987366,1772974241894,-1500.0,0.00014795,2]
[407987367,1772974241903,-1500.0,0.00014795,2]
[407987368,1772974241912,-1500.0,0.00014795,2]
[407987369,1772974241922,-1000.0,0.00014795,2]
[407987370,1772974241931,-1500.0,0.00014795,2]
[407987371,1772974241940,-1285.42431869,0.00014795,2]
[407987372,1772974241949,-200.0,0.00014852,2]
[407987373,1772974241958,-158.1,0.00014904,2]
[407987374,1772974241967,-433.0,0.0001496,2]
[407987375,1772974241976,-250.0,0.00015,2]
[407987376,1772974241985,-500.0,0.00015,30]
[407987377,1772974241994,-719.24067621,0.00015,30]
[407987378,1772974242003,-500.0,0.00015,30]
[407987379,1772974242012,-500.0,0.00015,30]
[407987380,1772974242022,-500.0,0.00015,30]
[407987381,1772974242031,-500.0,0.00015,30]
[407987382,1772974242040,-500.0,0.00015,30]
[407987383,1772974242049,-500.0,0.00015,30]
[407987384,1772974242059,-500.0,0.00015,30]
[407987385,1772974242067,-505.76633109,0.00015,30]
[407987386,1772974242076,-737.76465158,0.00015,30]
[407987387,1772974242086,-636.54725451,0.00015,30]
[407987388,1772974242095,-500.0,0.00015,30]
[407987389,1772974242104,-500.0,0.00015,30]
[407987390,1772974242113,-500.0,0.00015,30]
[407987391,1772974242123,-500.0,0.00015,30]
[407987392,1772974242131,-500.0,0.00015,30]
[407987393,1772974242141,-181.49,0.00015017,2]
[407987394,1772974242150,-1500.0,0.00015064,2]
[407987395,1772974242160,-2500.0,0.00015064,2]
[407987396,1772974242170,-19162.73,0.00015111,2]
[407987397,1772974242180,-18237.36401677,0.00015115,2]
[407987398,1772974242189,-351.97472305,0.00015149,2]
[407987399,1772974242199,-1357.02,0.00015167,2]
[407987400,1772974242209,-3079.32,0.00015188,2]
[407987401,1772974242218,-252.0,0.00015232,2]
[407987402,1772974242227,-3079.32,0.000153,2]
[407987403,1772974242236,-1500.0,0.00015342,2]
[407987404,1772974242245,-2000.0,0.00015342,2]
[407987405,1772974242254,-2000.0,0.00015342,2]
[407987406,1772974242263,-2000.0,0.00015342,2]
[407987407,1772974242272,-2000.0,0.00015342,2]
[407987408,1772974242282,-2000.0,0.00015342,2]
[407987409,1772974242291,-181.49,0.00015357,2]
[407987410,1772974242300,-3079.32,0.00015412,2]
[407987411,1772974242310,-756.06,0.00015471,2]
[407987412,1772974242319,-151.0,0.00015569,2]
[407987413,1772974242328,-1979.57,0.00015572,2]
[407987414,1772974242338,-500.0,0.00015612,2]
[407987415,1772974242347,-181.49,0.00015696,2]
[407987416,1772974242356,-1979.56,0.00015827,2]
[407987417,1772974242365,-1719.58548492,0.0001589,2]
[407987418,1772974242374,-2500.0,0.0001589,2]
[407987419,1772974242383,-1000.0,0.0001589,2]
[407987420,1772974242392,-1000.0,0.0001589,2]
[407987421,1772974242401,-649.86978781,0.0001589,2]
[407987422,1772974242411,-18237.36401677,0.00015913,2]
[407987423,1772974242420,-250.0,0.00015914,2]
[407987424,1772974242430,-5000.0,0.0001596,2]
[407987425,1772974242440,-383.55764632,0.00016,2]
[407987426,1772974242450,-181.49,0.00016035,2]
[407987427,1772974242459,-500.0,0.00016115,2]
[407987428,1772974242468,-500.0,0.00016115,2]
[407987429,1772974242477,-522.2,0.00016115,2]
[407987430,1772974242487,-9999.99,0.00016116,2]
[407987431,1772974242496,-3292.0,0.00016148,2]
[407987432,1772974242505,-736.0,0.00016251,2]
[407987433,1772974242514,-351.97472305,0.00016337,2]
[407987434,1772974242523,-379.75582371,0.00016337,2]
[407987435,1772974242533,-604.66666666,0.00016337,2]
[407987436,1772974242544,-542.59073283,0.00016361,2]
[407987437,1772974242553,-181.49,0.00016374,2]
[407987438,1772974242564,-1336.46733329,0.00016438,2]
[407987439,1772974242573,-1357.02,0.00016683,2]
[407987440,1772974242582,-181.49,0.00016713,2]
[407987441,1772974242591,-150.0,0.0001673,2]
[407987442,1772974242600,-150.0,0.00016731,2]
[407987443,1772974242609,-154.791541,0.00016733,2]
[407987444,1772974242618,-300.0,0.00017,2]
[407987445,1772974242627,-503.0,0.00017,2]
[407987446,1772974242636,-181.49,0.00017052,2]
[407987447,1772974242645,-181.49,0.00017391,2]
[407987448,1772974242655,-351.97472305,0.00017524,2]
[407987449,1772974242664,-1252.0,0.00017669,2]
[407987450,1772974242673,-261.77,0.00017678,2]
[407987451,1772974242682,-181.49,0.0001773,2]
[407987452,1772974242692,-4609.0,0.00017763,2]
[407987453,1772974242701,-1541.03721467,0.00018,2]
[407987454,1772974242710,-181.49,0.0001807,2]
[407987455,1772974242720,-1357.02,0.000182,2]
[407987456,1772974242731,-285.36,0.00018356,2]
[407987457,1772974242742,-2000.0,0.000184,2]
[407987458,1772974242752,-181.49,0.00018409,2]
[407987459,1772974242762,-2000.0,0.000185,2]
[407987460,1772974242772,-9999.99,0.00018533,2]
[407987461,1772974242782,-2000.0,0.000186,2]
[407987462,1772974242795,-2000.0,0.000187,2]
[407987463,1772974242805,-351.97472305,0.00018712,2]
[407987464,1772974242815,-181.49,0.00018748,2]
[407987465,1772974242824,-2000.0,0.000188,2]
[407987466,1772974242837,-2000.0,0.000189,2]
[407987467,1772974242846,-160.0,0.00018957,2]
[407987468,1772974242855,-500.0,0.00018999,2]
[407987469,1772974242864,-151.0,0.00018999,2]
[407987470,1772974242872,-174.61919141,0.00018999,2]
[407987471,1772974242883,-693.3919763,0.00018999,2]
[407987472,1772974242892,-262.90206542,0.00018999,2]
[407987473,1772974242901,-500.0,0.00018999,2]
[407987474,1772974242911,-500.0,0.00018999,2]
[407987475,1772974242919,-200.0,0.00018999,2]
[407987476,1772974242928,-500.0,0.00018999,2]
[407987477,1772974242938,-500.0,0.00018999,2]
[407987479,1772974242947,-500.0,0.00018999,2]
[407987480,1772974242956,-500.0,0.00018999,2]
[407987481,1772974242965,-500.0,0.00018999,2]
[407987482,1772974242974,-500.0,0.00018999,2]
[407987483,1772974242983,-500.0,0.00018999,2]
[407987484,1772974242992,-500.0,0.00018999,2]
[407987485,1772974243001,-500.0,0.00018999,2]
[407987486,1772974243010,-2000.0,0.00019,2]
[407987487,1772974243019,-785.87433,0.00019,2]
[407987488,1772974243028,-442.33478263,0.00019,2]
[407987490,1772974243037,-168.0,0.00019004,2]
[407987492,1772974243046,-151.0,0.00019054,2]
[407987494,1772974243055,-719.04747942,0.00019054,2]
[407987495,1772974243064,-446.12402339,0.00019073,2]
[407987496,1772974243074,-500.0,0.00019073,2]
[407987497,1772974243083,-500.0,0.00019073,2]
[407987499,1772974243092,-500.0,0.00019073,2]
[407987500,1772974243102,-301.78790722,0.00019073,2]
[407987502,1772974243111,-500.0,0.00019073,2]
[407987504,1772974243121,-500.0,0.00019073,2]
[407987505,1772974243130,-500.0,0.00019073,2]
[407987506,1772974243139,-500.0,0.00019073,2]
[407987507,1772974243149,-500.0,0.00019073,2]
[407987508,1772974243158,-500.0,0.00019073,2]
[407987509,1772974243168,-181.49,0.00019087,2]
[407987510,1772974243177,-500.0,0.00019087,2]
[407987511,1772974243186,-500.0,0.00019087,2]
[407987512,1772974243195,-142762.43,0.00019088,2]
[407987513,1772974243204,-2000.0,0.000191,2]
[407987515,1772974243214,-151.0,0.00019109,2]
[407987516,1772974243223,-745.65223616,0.00019109,2]
[407987517,1772974243233,-350.0,0.00019156,2]
[407987518,1772974243242,-350.0,0.00019162,2]
[407987519,1772974243251,-151.0,0.00019164,2]
[407987520,1772974243260,-773.2413689,0.00019164,2]
[407987521,1772974243270,-421.72,0.00019178,30]
[407987522,1772974243280,-2000.0,0.000192,2]
[407987523,1772974243289,-2000.0,0.000192,2]
[407987524,1772974243298,-1846.0,0.00019213,2]
[407987525,1772974243307,-151.0,0.00019219,2]
[407987526,1772974243316,-801.85129955,0.00019219,2]
[407987527,1772974243326,-350.0,0.00019244,2]
[407987528,1772974243336,-151.0,0.00019274,2]
[407987529,1772974243346,-831.51979763,0.00019274,2]
[407987530,1772974243355,-2000.0,0.000193,2]
[407987531,1772974243365,-350.0,0.00019309,2]
[407987532,1772974243377,-151.0,0.00019329,2]
[407987533,1772974243387,-862.28603014,0.00019329,2]
[407987534,1772974243397,-151.0,0.00019384,2]
[407987535,1772974243407,-894.19061326,0.00019384,2]
[407987536,1772974243416,-2000.0,0.000194,2]
[407987537,1772974243426,-181.49,0.00019426,2]
[407987538,1772974243436,-151.0,0.00019439,2]
[407987539,1772974243445,-927.27566595,0.00019439,2]
[407987540,1772974243454,-151.0,0.00019494,2]
[407987541,1772974243463,-961.58486559,0.00019494,2]
[407987542,1772974243474,-2000.0,0.000195,2]
[407987544,1772974243484,-319.0,0.00019528,2]
[407987545,1772974243495,-6453.0,0.00019539,2]
[407987546,1772974243504,-181.08010149,0.00019547,2]
[407987547,1772974243513,-272.62944185,0.00019547,2]
[407987548,1772974243524,-300.0,0.00019547,2]
[407987549,1772974243533,-151.0,0.00019549,2]
[407987550,1772974243543,-997.16350561,0.00019549,2]